[Event "Titled Tuesday Blitz March 22 Late 2022"]
[White "Kovanova, Baira"]
[Black "Mekhitarian, Krikor Sevag"]
[WhiteFideId "4164083"]
[BlackFideId "2107660"]
[WhiteElo "2190"]
[BlackElo "2598"]
[Result "0-1"]
[Round "09"]
[TimeControl "180+1"]
[Date "2022.03.22"]
[WhiteClock "0:00:03"]
[BlackClock "0:00:42"]

1. e4 {[%clk 0:02:58]}  c5 {[%clk 0:02:59]} 2. Nf3 {[%clk 0:02:58]}  e6 {[%clk 0:02:59]} 3. d4 {[%clk 0:02:58]}  cxd4 {[%clk 0:03:00]} 4. Nxd4 {[%clk 0:02:58]}  Nc6 {[%clk 0:03:00]} 5. Nc3 {[%clk 0:02:58]}  a6 {[%clk 0:03:00]} 6. Nxc6 {[%clk 0:02:47]}  bxc6 {[%clk 0:03:01]} 7. Bd3 {[%clk 0:02:46]}  d5 {[%clk 0:03:01]} 8. O-O {[%clk 0:02:46]}  Qc7 {[%clk 0:03:01]} 9. Re1 {[%clk 0:02:43]}  Bb7 {[%clk 0:03:00]} 10. Qf3 {[%clk 0:02:42]}  Bd6 {[%clk 0:02:59]} 11. h3 {[%clk 0:02:37]}  Ne7 {[%clk 0:02:55]} 12. Qg4 {[%clk 0:02:21]}  O-O {[%clk 0:02:40]} 13. Bg5 {[%clk 0:02:20]}  Ng6 {[%clk 0:02:30]} 14. exd5 {[%clk 0:02:10]}  cxd5 {[%clk 0:02:29]} 15. Bxg6 {[%clk 0:01:55]}  hxg6 {[%clk 0:02:29]} 16. h4 {[%clk 0:01:55]}  Rae8 {[%clk 0:02:18]} 17. h5 {[%clk 0:01:51]}  gxh5 {[%clk 0:02:19]} 18. Qxh5 {[%clk 0:01:51]}  f6 {[%clk 0:02:20]} 19. Bd2 {[%clk 0:01:42]}  Qf7 {[%clk 0:02:19]} 20. Qxf7+ {[%clk 0:01:24]}  Kxf7 {[%clk 0:02:18]} 21. Rad1 {[%clk 0:01:24]}  Rc8 {[%clk 0:02:17]} 22. Be3 {[%clk 0:01:23]}  Rfd8 {[%clk 0:02:10]} 23. Re2 {[%clk 0:01:17]}  Bc6 {[%clk 0:02:02]} 24. f4 {[%clk 0:00:59]}  Bc7 {[%clk 0:01:59]} 25. Kf2 {[%clk 0:00:58]}  e5 {[%clk 0:01:52]} 26. fxe5 {[%clk 0:00:56]}  fxe5 {[%clk 0:01:53]} 27. Bg5 {[%clk 0:00:53]}  Rd7 {[%clk 0:01:53]} 28. Bh4 {[%clk 0:00:45]}  Kg6 {[%clk 0:01:44]} 29. Bg3 {[%clk 0:00:41]}  Re8 {[%clk 0:01:42]} 30. Ke1 {[%clk 0:00:13]}  Re6 {[%clk 0:01:19]} 31. Rd3 {[%clk 0:00:10]}  Kf7 {[%clk 0:00:51]} 32. a3 {[%clk 0:00:09]}  Kg8 {[%clk 0:00:51]} 33. b4 {[%clk 0:00:07]}  Re8 {[%clk 0:00:49]} 34. Bf2 {[%clk 0:00:04]}  d4 {[%clk 0:00:48]} 35. Bxd4 {[%clk 0:00:04]}  Rxd4 {[%clk 0:00:47]} 36. Rxd4 {[%clk 0:00:04]}  exd4 {[%clk 0:00:47]} 37. Rxe8+ {[%clk 0:00:04]}  Bxe8 {[%clk 0:00:48]} 38. Ne2 {[%clk 0:00:05]}  Be5 {[%clk 0:00:46]} 39. Kd2 {[%clk 0:00:04]}  Bc6 {[%clk 0:00:44]} 40. g3 {[%clk 0:00:04]}  Bf3 {[%clk 0:00:43]} 41. Nf4 {[%clk 0:00:02]}  Bxf4+ {[%clk 0:00:42]} 42. gxf4 {[%clk 0:00:03]}  Be4 {[%clk 0:00:42]} 43. a4 {[%clk 0:00:03]}  Kf7 {[%clk 0:00:42]} 44. b5 {[%clk 0:00:03]}  axb5 {[%clk 0:00:41]} 45. axb5 {[%clk 0:00:03]}  Ke6 {[%clk 0:00:42]} 0-1


[Site "https://www.chess.com"]

[Event "Titled Tuesday Blitz March 22 Late 2022"]
[White "Maghsoodloo, Parham"]
[Black "Sarana, Alexey"]
[WhiteFideId "12539929"]
[BlackFideId "24133795"]
[WhiteElo "2630"]
[BlackElo "2666"]
[Result "1-0"]
[Round "09"]
[TimeControl "180+1"]
[Date "2022.03.22"]
[WhiteClock "0:01:08"]
[BlackClock "0:00:02"]

1. d4 {[%clk 0:03:00]}  Nf6 {[%clk 0:03:00]} 2. c4 {[%clk 0:03:01]}  e6 {[%clk 0:03:00]} 3. Nc3 {[%clk 0:03:01]}  Bb4 {[%clk 0:03:01]} 4. e3 {[%clk 0:03:01]}  O-O {[%clk 0:03:01]} 5. Bd2 {[%clk 0:03:02]}  d5 {[%clk 0:03:01]} 6. Nf3 {[%clk 0:03:02]}  b6 {[%clk 0:03:01]} 7. cxd5 {[%clk 0:03:02]}  exd5 {[%clk 0:03:02]} 8. Rc1 {[%clk 0:03:02]}  Bb7 {[%clk 0:03:01]} 9. Bd3 {[%clk 0:03:03]}  Re8 {[%clk 0:03:01]} 10. Ne5 {[%clk 0:03:02]}  Bf8 {[%clk 0:02:55]} 11. O-O {[%clk 0:03:02]}  c5 {[%clk 0:02:55]} 12. f4 {[%clk 0:03:03]}  Ne4 {[%clk 0:02:52]} 13. Bxe4 {[%clk 0:02:40]}  dxe4 {[%clk 0:02:53]} 14. Nxf7 {[%clk 0:02:39]}  Kxf7 {[%clk 0:02:45]} 15. Qb3+ {[%clk 0:02:39]}  Kg6 {[%clk 0:02:30]} 16. f5+ {[%clk 0:02:40]}  Kh6 {[%clk 0:02:30]} 17. Be1 {[%clk 0:02:14]}  Bd6 {[%clk 0:02:08]} 18. Nb5 {[%clk 0:02:09]}  Bd5 {[%clk 0:01:36]} 19. Qd1 {[%clk 0:01:55]}  g5 {[%clk 0:01:18]} 20. f6 {[%clk 0:01:31]}  Nc6 {[%clk 0:00:52]} 21. h4 {[%clk 0:01:21]}  Rg8 {[%clk 0:00:32]} 22. Qg4 {[%clk 0:01:18]}  Rg6 {[%clk 0:00:20]} 23. Rf5 {[%clk 0:01:09]}  Qg8 {[%clk 0:00:02]} 24. hxg5+ {[%clk 0:01:08]}  Rxg5 {[%clk 0:00:02]} 25. Qh4+ {[%clk 0:01:08]} 1-0


[Site "https://www.chess.com"]

[Event "Titled Tuesday Blitz March 22 Late 2022"]
[White "Marcziter, Dmitrii"]
[Black "Manukian, Artak"]
[WhiteFideId "13900765"]
[BlackFideId "13301373"]
[WhiteElo "2155"]
[BlackElo "2428"]
[Result "1-0"]
[Round "09"]
[TimeControl "180+1"]
[Date "2022.03.22"]
[WhiteClock "0:00:50"]
[BlackClock "0:00:01"]

1. d4 {[%clk 0:03:00]}  Nf6 {[%clk 0:02:34]} 2. c4 {[%clk 0:03:00]}  g6 {[%clk 0:02:33]} 3. Nf3 {[%clk 0:02:59]}  Bg7 {[%clk 0:02:34]} 4. g3 {[%clk 0:03:00]}  O-O {[%clk 0:02:35]} 5. Bg2 {[%clk 0:03:00]}  d6 {[%clk 0:02:36]} 6. O-O {[%clk 0:03:00]}  Nc6 {[%clk 0:02:35]} 7. Nc3 {[%clk 0:03:01]}  e5 {[%clk 0:02:35]} 8. dxe5 {[%clk 0:03:00]}  Nxe5 {[%clk 0:02:33]} 9. Nxe5 {[%clk 0:03:00]}  dxe5 {[%clk 0:02:34]} 10. Qxd8 {[%clk 0:03:00]}  Rxd8 {[%clk 0:02:35]} 11. Bg5 {[%clk 0:03:00]}  c6 {[%clk 0:02:34]} 12. Ne4 {[%clk 0:02:54]}  Nxe4 {[%clk 0:02:30]} 13. Bxd8 {[%clk 0:02:53]}  Nd2 {[%clk 0:02:30]} 14. Rfc1 {[%clk 0:02:47]}  Be6 {[%clk 0:02:21]} 15. Bg5 {[%clk 0:02:39]}  Nxc4 {[%clk 0:02:21]} 16. b3 {[%clk 0:02:38]}  Nb6 {[%clk 0:02:20]} 17. e4 {[%clk 0:02:34]}  f6 {[%clk 0:01:49]} 18. Be3 {[%clk 0:02:33]}  Kf7 {[%clk 0:01:50]} 19. Rd1 {[%clk 0:02:30]}  Ke8 {[%clk 0:01:48]} 20. Rd2 {[%clk 0:02:29]}  Bf8 {[%clk 0:01:45]} 21. Rad1 {[%clk 0:02:22]}  Bb4 {[%clk 0:01:31]} 22. Rc2 {[%clk 0:02:22]}  Nd7 {[%clk 0:01:27]} 23. Bf1 {[%clk 0:02:18]}  a5 {[%clk 0:01:22]} 24. Bc4 {[%clk 0:02:16]}  Bg4 {[%clk 0:01:13]} 25. Be2 {[%clk 0:02:15]}  Be6 {[%clk 0:01:12]} 26. f3 {[%clk 0:02:14]}  a4 {[%clk 0:01:11]} 27. Bc4 {[%clk 0:02:13]}  axb3 {[%clk 0:01:05]} 28. axb3 {[%clk 0:02:13]}  Bxc4 {[%clk 0:01:00]} 29. Rxc4 {[%clk 0:02:12]}  c5 {[%clk 0:00:58]} 30. Rc2 {[%clk 0:02:08]}  Ra3 {[%clk 0:00:52]} 31. Rb1 {[%clk 0:02:04]}  b5 {[%clk 0:00:46]} 32. Bc1 {[%clk 0:02:04]}  Ra6 {[%clk 0:00:41]} 33. Bd2 {[%clk 0:02:04]}  Bxd2 {[%clk 0:00:30]} 34. Rxd2 {[%clk 0:02:03]}  Ke7 {[%clk 0:00:20]} 35. Rd5 {[%clk 0:01:58]}  Rd6 {[%clk 0:00:19]} 36. Rbd1 {[%clk 0:01:55]}  Rxd5 {[%clk 0:00:18]} 37. Rxd5 {[%clk 0:01:55]}  c4 {[%clk 0:00:13]} 38. bxc4 {[%clk 0:01:54]}  bxc4 {[%clk 0:00:14]} 39. Kf2 {[%clk 0:01:54]}  Ke6 {[%clk 0:00:15]} 40. Ke3 {[%clk 0:01:52]}  f5 {[%clk 0:00:15]} 41. Ra5 {[%clk 0:01:49]}  fxe4 {[%clk 0:00:15]} 42. fxe4 {[%clk 0:01:48]}  Nf6 {[%clk 0:00:15]} 43. Ra6+ {[%clk 0:01:47]}  Ke7 {[%clk 0:00:15]} 44. h3 {[%clk 0:01:47]}  g5 {[%clk 0:00:10]} 45. Rc6 {[%clk 0:01:45]}  h5 {[%clk 0:00:08]} 46. Rxc4 {[%clk 0:01:44]}  h4 {[%clk 0:00:08]} 47. Kf3 {[%clk 0:01:37]}  hxg3 {[%clk 0:00:07]} 48. Kxg3 {[%clk 0:01:37]}  Nh5+ {[%clk 0:00:08]} 49. Kg4 {[%clk 0:01:37]}  Nf4 {[%clk 0:00:09]} 50. Rc6 {[%clk 0:01:35]}  Kf7 {[%clk 0:00:07]} 51. Kf5 {[%clk 0:01:29]}  Nxh3 {[%clk 0:00:07]} 52. Kxe5 {[%clk 0:01:29]}  g4 {[%clk 0:00:07]} 53. Rh6 {[%clk 0:01:24]}  Kg7 {[%clk 0:00:06]} 54. Rh4 {[%clk 0:01:23]}  Nf2 {[%clk 0:00:07]} 55. Kf4 {[%clk 0:01:21]}  Kf6 {[%clk 0:00:06]} 56. Rh6+ {[%clk 0:01:20]}  Ke7 {[%clk 0:00:06]} 57. Ra6 {[%clk 0:01:19]}  g3 {[%clk 0:00:05]} 58. Kxg3 {[%clk 0:01:11]}  Nxe4+ {[%clk 0:00:05]} 59. Kf4 {[%clk 0:01:11]}  Nd6 {[%clk 0:00:04]} 60. Ke5 {[%clk 0:01:11]}  Nc4+ {[%clk 0:00:04]} 61. Kd5 {[%clk 0:01:10]}  Ne3+ {[%clk 0:00:04]} 62. Ke4 {[%clk 0:01:09]}  Nc4 {[%clk 0:00:04]} 63. Kd4 {[%clk 0:01:07]}  Nd6 {[%clk 0:00:03]} 64. Kd5 {[%clk 0:01:07]}  Nf5 {[%clk 0:00:03]} 65. Ke5 {[%clk 0:01:07]}  Ng7 {[%clk 0:00:03]} 66. Ra7+ {[%clk 0:01:07]}  Kf8 {[%clk 0:00:04]} 67. Kf6 {[%clk 0:01:07]}  Ne8+ {[%clk 0:00:04]} 68. Ke6 {[%clk 0:01:05]}  Ng7+ {[%clk 0:00:04]} 69. Kf6 {[%clk 0:01:05]}  Ne8+ {[%clk 0:00:04]} 70. Kg6 {[%clk 0:01:05]}  Nd6 {[%clk 0:00:03]} 71. Rd7 {[%clk 0:01:03]}  Ne8 {[%clk 0:00:02]} 72. Rf7+ {[%clk 0:00:59]}  Kg8 {[%clk 0:00:02]} 73. Re7 {[%clk 0:00:56]}  Kf8 {[%clk 0:00:02]} 74. Re1 {[%clk 0:00:55]}  Ng7 {[%clk 0:00:02]} 75. Rf1+ {[%clk 0:00:54]}  Kg8 {[%clk 0:00:02]} 76. Ra1 {[%clk 0:00:52]}  Ne6 {[%clk 0:00:02]} 77. Ra8+ {[%clk 0:00:51]}  Nf8+ {[%clk 0:00:02]} 78. Kf6 {[%clk 0:00:51]}  Kh7 {[%clk 0:00:01]} 79. Rxf8 {[%clk 0:00:50]} 1-0


[Site "https://www.chess.com"]

[Event "Titled Tuesday Blitz March 22 Late 2022"]
[White "Martin Carmona, Gaston Manuel"]
[Black "Barp, Alberto"]
[WhiteFideId "22284567"]
[BlackFideId "872555"]
[WhiteElo "2161"]
[BlackElo "2229"]
[Result "0-1"]
[Round "09"]
[TimeControl "180+1"]
[Date "2022.03.22"]
[WhiteClock "0:00:03"]
[BlackClock "0:00:04"]

1. Nf3 {[%clk 0:03:00]}  d5 {[%clk 0:02:54]} 2. d4 {[%clk 0:03:00]}  e6 {[%clk 0:02:54]} 3. c4 {[%clk 0:02:57]}  c6 {[%clk 0:02:52]} 4. g3 {[%clk 0:02:49]}  Bb4+ {[%clk 0:02:46]} 5. Bd2 {[%clk 0:02:44]}  Bd6 {[%clk 0:02:44]} 6. Bg2 {[%clk 0:02:41]}  f5 {[%clk 0:02:40]} 7. O-O {[%clk 0:02:41]}  Nf6 {[%clk 0:02:40]} 8. Bf4 {[%clk 0:02:38]}  Bxf4 {[%clk 0:02:39]} 9. gxf4 {[%clk 0:02:38]}  O-O {[%clk 0:02:39]} 10. e3 {[%clk 0:02:38]}  b6 {[%clk 0:02:38]} 11. Qc2 {[%clk 0:02:36]}  Ba6 {[%clk 0:02:37]} 12. Nbd2 {[%clk 0:02:31]}  Nbd7 {[%clk 0:02:34]} 13. Rfc1 {[%clk 0:02:26]}  Rc8 {[%clk 0:02:06]} 14. cxd5 {[%clk 0:02:25]}  exd5 {[%clk 0:01:53]} 15. Qxf5 {[%clk 0:02:19]}  Qe7 {[%clk 0:01:49]} 16. Qc2 {[%clk 0:02:02]}  c5 {[%clk 0:01:45]} 17. Qa4 {[%clk 0:02:01]}  Bd3 {[%clk 0:01:42]} 18. Rc3 {[%clk 0:01:23]}  c4 {[%clk 0:01:39]} 19. Qxa7 {[%clk 0:01:16]}  b5 {[%clk 0:01:33]} 20. Ne5 {[%clk 0:01:07]}  b4 {[%clk 0:01:28]} 21. Rcc1 {[%clk 0:01:02]}  Bf5 {[%clk 0:01:26]} 22. Qa4 {[%clk 0:00:42]}  c3 {[%clk 0:01:18]} 23. bxc3 {[%clk 0:00:40]}  bxc3 {[%clk 0:01:19]} 24. Ndf3 {[%clk 0:00:37]}  Ne4 {[%clk 0:01:18]} 25. Nxd7 {[%clk 0:00:34]}  Bxd7 {[%clk 0:01:19]} 26. Qb3 {[%clk 0:00:34]}  Be6 {[%clk 0:01:16]} 27. Ne5 {[%clk 0:00:32]}  g5 {[%clk 0:01:05]} 28. Bxe4 {[%clk 0:00:31]}  dxe4 {[%clk 0:00:56]} 29. d5 {[%clk 0:00:31]}  gxf4 {[%clk 0:00:38]} 30. dxe6 {[%clk 0:00:30]}  fxe3 {[%clk 0:00:33]} 31. fxe3 {[%clk 0:00:26]}  Rc5 {[%clk 0:00:23]} 32. Nf7 {[%clk 0:00:23]}  Rfc8 {[%clk 0:00:08]} 33. Kh1 {[%clk 0:00:20]}  c2 {[%clk 0:00:08]} 34. Qb2 {[%clk 0:00:16]}  Qxe6 {[%clk 0:00:08]} 35. Qh8+ {[%clk 0:00:11]}  Kxf7 {[%clk 0:00:08]} 36. Rf1+ {[%clk 0:00:11]}  Ke7 {[%clk 0:00:07]} 37. Qg7+ {[%clk 0:00:11]}  Kd6 {[%clk 0:00:04]} 38. Qd4+ {[%clk 0:00:07]}  Kc6 {[%clk 0:00:02]} 39. Rac1 {[%clk 0:00:08]}  Qd5 {[%clk 0:00:02]} 40. Rf6+ {[%clk 0:00:08]}  Kb5 {[%clk 0:00:02]} 41. Qb2+ {[%clk 0:00:07]}  Ka5 {[%clk 0:00:02]} 42. Qb6+ {[%clk 0:00:07]}  Ka4 {[%clk 0:00:02]} 43. Qa6+ {[%clk 0:00:07]}  Ra5 {[%clk 0:00:03]} 44. Qe2 {[%clk 0:00:05]}  Qc4 {[%clk 0:00:03]} 45. Qd2 {[%clk 0:00:04]}  Rd5 {[%clk 0:00:03]} 46. Qf2 {[%clk 0:00:04]}  Rd1+ {[%clk 0:00:03]} 47. Kg2 {[%clk 0:00:03]}  Rxc1 {[%clk 0:00:03]} 48. Rb6 {[%clk 0:00:03]}  Qf1+ {[%clk 0:00:03]} 49. Qxf1 {[%clk 0:00:03]}  Rxf1 {[%clk 0:00:04]} 0-1


[Site "https://www.chess.com"]

[Event "Titled Tuesday Blitz March 22 Late 2022"]
[White "Matinian, Nikita"]
[Black "Janaszak, Dawid"]
[WhiteFideId "24129100"]
[BlackFideId "1119206"]
[WhiteElo "2422"]
[BlackElo "2199"]
[Result "1-0"]
[Round "09"]
[TimeControl "180+1"]
[Date "2022.03.22"]
[WhiteClock "0:01:45"]
[BlackClock "0:00:32"]

1. e4 {[%clk 0:02:23]}  c5 {[%clk 0:02:59]} 2. Nc3 {[%clk 0:02:23]}  a6 {[%clk 0:02:55]} 3. d4 {[%clk 0:02:20]}  cxd4 {[%clk 0:02:53]} 4. Qxd4 {[%clk 0:02:21]}  Nc6 {[%clk 0:02:52]} 5. Qd2 {[%clk 0:02:21]}  g6 {[%clk 0:02:45]} 6. b3 {[%clk 0:02:21]}  Nf6 {[%clk 0:02:41]} 7. Bb2 {[%clk 0:02:20]}  Bg7 {[%clk 0:02:38]} 8. O-O-O {[%clk 0:02:20]}  d6 {[%clk 0:02:33]} 9. f4 {[%clk 0:02:19]}  O-O {[%clk 0:02:28]} 10. Nf3 {[%clk 0:02:19]}  b5 {[%clk 0:02:13]} 11. Bd3 {[%clk 0:02:15]}  Bb7 {[%clk 0:02:07]} 12. h4 {[%clk 0:02:15]}  Nb4 {[%clk 0:01:39]} 13. h5 {[%clk 0:02:15]}  Rc8 {[%clk 0:01:39]} 14. hxg6 {[%clk 0:02:12]}  Nxd3+ {[%clk 0:01:37]} 15. Qxd3 {[%clk 0:02:06]}  fxg6 {[%clk 0:01:36]} 16. Ng5 {[%clk 0:02:02]}  Qd7 {[%clk 0:01:30]} 17. e5 {[%clk 0:02:00]}  Nh5 {[%clk 0:00:59]} 18. Rxh5 {[%clk 0:01:54]}  b4 {[%clk 0:00:45]} 19. Rxh7 {[%clk 0:01:49]}  bxc3 {[%clk 0:00:37]} 20. Qxg6 {[%clk 0:01:45]}  cxb2+ {[%clk 0:00:35]} 21. Kb1 {[%clk 0:01:46]}  e6 {[%clk 0:00:32]} 22. Rh8+ {[%clk 0:01:45]} 1-0


[Site "https://www.chess.com"]

[Event "Titled Tuesday Blitz March 22 Late 2022"]
[White "Perez Torres, Nabi Isaias"]
[Black "Ferreira, Vitor Hugo Vieira"]
[WhiteFideId "5120373"]
[BlackFideId "2119765"]
[WhiteElo "1755"]
[BlackElo "2165"]
[Result "1/2-1/2"]
[Round "09"]
[TimeControl "180+1"]
[Date "2022.03.22"]
[WhiteClock "0:00:17"]
[BlackClock "0:00:53"]

1. d4 {[%clk 0:03:00]}  d5 {[%clk 0:02:54]} 2. c4 {[%clk 0:03:01]}  c6 {[%clk 0:02:54]} 3. Nc3 {[%clk 0:03:01]}  Nf6 {[%clk 0:02:54]} 4. e3 {[%clk 0:03:01]}  e6 {[%clk 0:02:54]} 5. Nf3 {[%clk 0:03:01]}  Nbd7 {[%clk 0:02:54]} 6. Bd3 {[%clk 0:03:02]}  Bd6 {[%clk 0:02:54]} 7. e4 {[%clk 0:03:02]}  dxc4 {[%clk 0:02:52]} 8. Bxc4 {[%clk 0:03:01]}  e5 {[%clk 0:02:52]} 9. dxe5 {[%clk 0:02:53]}  Nxe5 {[%clk 0:02:52]} 10. Nxe5 {[%clk 0:02:52]}  Bxe5 {[%clk 0:02:52]} 11. Qxd8+ {[%clk 0:02:53]}  Kxd8 {[%clk 0:02:53]} 12. f3 {[%clk 0:02:37]}  Ke7 {[%clk 0:02:37]} 13. Ke2 {[%clk 0:02:23]}  Be6 {[%clk 0:02:33]} 14. Bxe6 {[%clk 0:02:16]}  Kxe6 {[%clk 0:02:33]} 15. Be3 {[%clk 0:02:14]}  b6 {[%clk 0:02:33]} 16. Rac1 {[%clk 0:02:07]}  Rhd8 {[%clk 0:02:31]} 17. g3 {[%clk 0:01:57]}  Rd7 {[%clk 0:02:30]} 18. g4 {[%clk 0:01:24]}  Rad8 {[%clk 0:02:27]} 19. h4 {[%clk 0:01:17]}  h5 {[%clk 0:02:26]} 20. g5 {[%clk 0:01:15]}  Ne8 {[%clk 0:02:26]} 21. Nd1 {[%clk 0:01:03]}  c5 {[%clk 0:02:23]} 22. f4 {[%clk 0:00:58]}  Bd4 {[%clk 0:02:21]} 23. Nc3 {[%clk 0:00:56]}  Bxc3 {[%clk 0:02:19]} 24. Rxc3 {[%clk 0:00:56]}  Nd6 {[%clk 0:02:19]} 25. Kf3 {[%clk 0:00:54]}  Nb5 {[%clk 0:02:15]} 26. Rc4 {[%clk 0:00:44]}  g6 {[%clk 0:02:13]} 27. Rhc1 {[%clk 0:00:40]}  Nd4+ {[%clk 0:02:12]} 28. Kf2 {[%clk 0:00:40]}  Nb5 {[%clk 0:02:07]} 29. a4 {[%clk 0:00:38]}  Nd6 {[%clk 0:02:07]} 30. R4c2 {[%clk 0:00:33]}  Nxe4+ {[%clk 0:02:07]} 31. Kf3 {[%clk 0:00:34]}  Nd2+ {[%clk 0:02:05]} 32. Ke2 {[%clk 0:00:32]}  Nb3 {[%clk 0:02:02]} 33. Re1 {[%clk 0:00:31]}  Kf5 {[%clk 0:01:55]} 34. Kf2 {[%clk 0:00:28]}  Re8 {[%clk 0:01:41]} 35. Rc3 {[%clk 0:00:23]}  Nd4 {[%clk 0:01:38]} 36. Rd1 {[%clk 0:00:22]}  Re4 {[%clk 0:01:33]} 37. Rcd3 {[%clk 0:00:21]}  Rde7 {[%clk 0:01:24]} 38. b4 {[%clk 0:00:20]}  Nc2 {[%clk 0:01:15]} 39. Bc1 {[%clk 0:00:19]}  Nxb4 {[%clk 0:01:14]} 40. Rd7 {[%clk 0:00:18]}  Kg4 {[%clk 0:01:09]} 41. R7d2 {[%clk 0:00:16]}  Rxf4+ {[%clk 0:01:08]} 42. Kg2 {[%clk 0:00:16]}  Rfe4 {[%clk 0:01:05]} 43. Kf2 {[%clk 0:00:15]}  Nc6 {[%clk 0:01:03]} 44. Rd5 {[%clk 0:00:15]}  Nd4 {[%clk 0:01:02]} 45. Rg1+ {[%clk 0:00:15]}  Kxh4 {[%clk 0:00:59]} 46. Rh1+ {[%clk 0:00:15]}  Kg4 {[%clk 0:00:59]} 47. Rg1+ {[%clk 0:00:16]}  Kh4 {[%clk 0:00:54]} 48. Rh1+ {[%clk 0:00:16]}  Kg4 {[%clk 0:00:54]} 49. Rg1+ {[%clk 0:00:17]}  Kh3 {[%clk 0:00:55]} 50. Rh1+ {[%clk 0:00:17]}  Kg4 {[%clk 0:00:53]} 1/2-1/2


[Site "https://www.chess.com"]

[Event "Titled Tuesday Blitz March 22 Late 2022"]
[White "Petesch, Gabriel"]
[Black "Papp, Petra"]
[WhiteFideId "2032465"]
[BlackFideId "739049"]
[WhiteElo "2374"]
[BlackElo "2259"]
[Result "1-0"]
[Round "09"]
[TimeControl "180+1"]
[Date "2022.03.22"]
[WhiteClock "0:00:07"]
[BlackClock "0:00:03"]

1. d4 {[%clk 0:02:31]}  Nf6 {[%clk 0:02:53]} 2. Nf3 {[%clk 0:02:32]}  c5 {[%clk 0:02:52]} 3. e3 {[%clk 0:02:32]}  g6 {[%clk 0:02:50]} 4. Bd3 {[%clk 0:02:31]}  Bg7 {[%clk 0:02:49]} 5. O-O {[%clk 0:02:31]}  O-O {[%clk 0:02:49]} 6. b4 {[%clk 0:02:22]}  cxd4 {[%clk 0:02:44]} 7. exd4 {[%clk 0:02:20]}  d5 {[%clk 0:02:43]} 8. b5 {[%clk 0:02:10]}  Bf5 {[%clk 0:02:41]} 9. a4 {[%clk 0:02:08]}  Nbd7 {[%clk 0:02:35]} 10. Re1 {[%clk 0:02:07]}  Rc8 {[%clk 0:02:32]} 11. Ba3 {[%clk 0:02:07]}  Re8 {[%clk 0:02:20]} 12. Nbd2 {[%clk 0:01:57]}  Nb6 {[%clk 0:02:07]} 13. Bc5 {[%clk 0:01:40]}  Nfd7 {[%clk 0:02:03]} 14. a5 {[%clk 0:01:35]}  Nxc5 {[%clk 0:01:45]} 15. Bxf5 {[%clk 0:01:34]}  gxf5 {[%clk 0:01:35]} 16. axb6 {[%clk 0:01:33]}  axb6 {[%clk 0:01:27]} 17. dxc5 {[%clk 0:01:30]}  Bxa1 {[%clk 0:01:25]} 18. Qxa1 {[%clk 0:01:31]}  bxc5 {[%clk 0:01:23]} 19. Qe5 {[%clk 0:01:28]}  e6 {[%clk 0:01:22]} 20. Qg3+ {[%clk 0:01:14]}  Kh8 {[%clk 0:01:14]} 21. Ne5 {[%clk 0:01:00]}  Qf6 {[%clk 0:01:13]} 22. Nd7 {[%clk 0:00:56]}  Qg7 {[%clk 0:01:09]} 23. Qh4 {[%clk 0:00:33]}  e5 {[%clk 0:00:40]} 24. Nf6 {[%clk 0:00:27]}  Re6 {[%clk 0:00:22]} 25. Nxd5 {[%clk 0:00:22]}  Rg8 {[%clk 0:00:20]} 26. g3 {[%clk 0:00:20]}  Rh6 {[%clk 0:00:19]} 27. Qe7 {[%clk 0:00:19]}  e4 {[%clk 0:00:17]} 28. Nf1 {[%clk 0:00:10]}  Qd4 {[%clk 0:00:11]} 29. c4 {[%clk 0:00:09]}  Re6 {[%clk 0:00:09]} 30. Qxf7 {[%clk 0:00:09]}  Qe5 {[%clk 0:00:02]} 31. Qxb7 {[%clk 0:00:08]}  Rd6 {[%clk 0:00:01]} 32. b6 {[%clk 0:00:07]}  f4 {[%clk 0:00:01]} 33. Qc7 {[%clk 0:00:06]}  Rxd5 {[%clk 0:00:01]} 34. cxd5 {[%clk 0:00:05]}  Qxc7 {[%clk 0:00:01]} 35. bxc7 {[%clk 0:00:06]}  Rc8 {[%clk 0:00:01]} 36. d6 {[%clk 0:00:06]}  c4 {[%clk 0:00:02]} 37. d7 {[%clk 0:00:06]}  c3 {[%clk 0:00:03]} 38. dxc8=Q+ {[%clk 0:00:06]}  Kg7 {[%clk 0:00:03]} 39. Qd7+ {[%clk 0:00:07]} 1-0


[Site "https://www.chess.com"]

[Event "Titled Tuesday Blitz March 22 Late 2022"]
[White "Pichot, Alan"]
[Black "Svane, Rasmus"]
[WhiteFideId "110973"]
[BlackFideId "4657101"]
[WhiteElo "2579"]
[BlackElo "2645"]
[Result "1-0"]
[Round "09"]
[TimeControl "180+1"]
[Date "2022.03.22"]
[WhiteClock "0:00:43"]
[BlackClock "0:00:22"]

1. e4 {[%clk 0:03:00]}  c6 {[%clk 0:03:00]} 2. Nf3 {[%clk 0:02:54]}  d5 {[%clk 0:03:01]} 3. d3 {[%clk 0:02:55]}  dxe4 {[%clk 0:03:01]} 4. dxe4 {[%clk 0:02:55]}  Qxd1+ {[%clk 0:03:02]} 5. Kxd1 {[%clk 0:02:56]}  Nf6 {[%clk 0:03:03]} 6. Nfd2 {[%clk 0:02:56]}  g5 {[%clk 0:02:59]} 7. a4 {[%clk 0:02:56]}  h5 {[%clk 0:02:59]} 8. c3 {[%clk 0:02:52]}  g4 {[%clk 0:02:57]} 9. Na3 {[%clk 0:02:49]}  Bh6 {[%clk 0:02:54]} 10. Bd3 {[%clk 0:02:46]}  Nbd7 {[%clk 0:02:51]} 11. Nb3 {[%clk 0:02:23]}  Ne5 {[%clk 0:02:44]} 12. Bc2 {[%clk 0:02:22]}  Be6 {[%clk 0:02:39]} 13. Nd4 {[%clk 0:02:21]}  O-O-O {[%clk 0:02:39]} 14. Bxh6 {[%clk 0:02:20]}  Rxh6 {[%clk 0:02:40]} 15. Ke2 {[%clk 0:02:18]}  Bd7 {[%clk 0:02:31]} 16. Rad1 {[%clk 0:02:10]}  c5 {[%clk 0:02:28]} 17. Nf5 {[%clk 0:02:02]}  Bxf5 {[%clk 0:02:27]} 18. exf5 {[%clk 0:02:03]}  h4 {[%clk 0:02:03]} 19. Rxd8+ {[%clk 0:01:48]}  Kxd8 {[%clk 0:02:04]} 20. Ke3 {[%clk 0:01:49]}  Ne8 {[%clk 0:01:32]} 21. Kf4 {[%clk 0:01:46]}  f6 {[%clk 0:01:31]} 22. Rd1+ {[%clk 0:01:43]}  Kc8 {[%clk 0:01:30]} 23. Bb3 {[%clk 0:01:40]}  Nd6 {[%clk 0:01:29]} 24. Be6+ {[%clk 0:01:40]}  Kc7 {[%clk 0:01:28]} 25. Nc2 {[%clk 0:01:21]}  h3 {[%clk 0:01:22]} 26. g3 {[%clk 0:01:21]}  Nf3 {[%clk 0:01:22]} 27. Ne3 {[%clk 0:01:21]}  Ne5 {[%clk 0:01:10]} 28. Nxg4 {[%clk 0:01:16]}  Nxg4 {[%clk 0:01:09]} 29. Kxg4 {[%clk 0:01:17]}  Rh7 {[%clk 0:00:59]} 30. Kf4 {[%clk 0:01:17]}  b6 {[%clk 0:00:55]} 31. g4 {[%clk 0:01:16]}  a6 {[%clk 0:00:54]} 32. b4 {[%clk 0:01:16]}  c4 {[%clk 0:00:54]} 33. Ke3 {[%clk 0:00:54]}  Rh8 {[%clk 0:00:46]} 34. f4 {[%clk 0:00:50]}  Rh4 {[%clk 0:00:30]} 35. Kf3 {[%clk 0:00:50]}  Kd8 {[%clk 0:00:29]} 36. g5 {[%clk 0:00:47]}  fxg5 {[%clk 0:00:27]} 37. fxg5 {[%clk 0:00:48]}  Ke8 {[%clk 0:00:28]} 38. g6 {[%clk 0:00:44]}  Kf8 {[%clk 0:00:24]} 39. Rxd6 {[%clk 0:00:42]}  exd6 {[%clk 0:00:22]} 40. f6 {[%clk 0:00:43]} 1-0


[Site "https://www.chess.com"]